fUST/lending_fUST_20260614
["ID","MTS","AMOUNT","RATE_DAILY","PERIOD"]
[424991997,1781385038000,-323.87764141,0.000253,2]
[424991994,1781385038000,-244.954829,0.00025208,2]
[424992001,1781385038000,-367.38438012,0.000253,2]
[424991981,1781385038000,-151.0,0.00025208,2]
[424991983,1781385038000,-151.0,0.00025208,2]
[424991993,1781385038000,-244.954829,0.00025208,2]
[424991982,1781385038000,-640.58071433,0.00025208,2]
[424991976,1781385038000,-151.0,0.00025208,2]
[424991978,1781385038000,-500.0,0.00025208,2]
[424991980,1781385038000,-500.0,0.00025208,2]
[424991979,1781385038000,-500.0,0.00025208,2]
[424991985,1781385038000,-378.884999,0.00025208,2]
[424991995,1781385038000,-244.954829,0.00025208,2]
[424991974,1781385038000,-327.52,0.00025208,2]
[424991984,1781385038000,-151.0,0.00025208,2]
[424991988,1781385038000,-378.884999,0.00025208,2]
[424991991,1781385038000,-369.680832,0.00025208,2]
[424991990,1781385038000,-369.680832,0.00025208,2]
[424991989,1781385038000,-369.680832,0.00025208,2]
[424991986,1781385038000,-378.884999,0.00025208,2]
[424991996,1781385038000,-244.954829,0.00025208,2]
[424991987,1781385038000,-378.884999,0.00025208,2]
[424992015,1781385040000,-3214.65,0.00025444,2]
[424992046,1781385043000,-1930.04165381,0.00025444,2]
[424992350,1781385046000,-151.0,0.00025444,2]
[424992344,1781385046000,-151.0,0.00025444,2]
[424992348,1781385046000,-151.0,0.00025444,2]
[424992358,1781385046000,-172.368,0.00025444,2]
[424992347,1781385046000,-151.0,0.00025444,2]
[424992351,1781385046000,-255.43,0.00025444,2]
[424992352,1781385046000,-255.43,0.00025444,2]
[424992355,1781385046000,-151.0,0.00025444,2]
[424992353,1781385046000,-255.43,0.00025444,2]
[424992371,1781385046000,-2190.316874,0.00025444,2]
[424992349,1781385046000,-151.0,0.00025444,2]
[424992357,1781385046000,-172.368,0.00025444,2]
[424992354,1781385046000,-255.43,0.00025444,2]
[424992359,1781385046000,-172.368,0.00025444,2]
[424992360,1781385046000,-471.426263,0.00025444,2]
[424992362,1781385046000,-471.426263,0.00025444,2]
[424992361,1781385046000,-471.426263,0.00025444,2]
[424992339,1781385046000,-369.680832,0.00025444,2]
[424992356,1781385046000,-172.368,0.00025444,2]
[424992346,1781385046000,-151.0,0.00025444,2]
[424992323,1781385046000,-327.52,0.00025444,2]
[424992341,1781385046000,-244.954829,0.00025444,2]
[424992364,1781385046000,-151.0,0.00025444,2]
[424992333,1781385046000,-378.884999,0.00025444,2]
[424992322,1781385046000,-327.52,0.00025444,2]
[424992324,1781385046000,-327.52,0.00025444,2]
[424992326,1781385046000,-151.0,0.00025444,2]
[424992325,1781385046000,-327.52,0.00025444,2]
[424992327,1781385046000,-151.0,0.00025444,2]
[424992329,1781385046000,-225.752701,0.00025444,2]
[424992331,1781385046000,-151.0,0.00025444,2]
[424992328,1781385046000,-151.0,0.00025444,2]
[424992332,1781385046000,-378.884999,0.00025444,2]
[424992330,1781385046000,-158.262567,0.00025444,2]
[424992334,1781385046000,-378.884999,0.00025444,2]
[424992337,1781385046000,-369.680832,0.00025444,2]
[424992338,1781385046000,-369.680832,0.00025444,2]
[424992335,1781385046000,-378.884999,0.00025444,2]
[424992345,1781385046000,-151.0,0.00025444,2]
[424992342,1781385046000,-244.954829,0.00025444,2]
[424992336,1781385046000,-369.680832,0.00025444,2]
[424992343,1781385046000,-244.954829,0.00025444,2]
[424992367,1781385046000,-292.911524,0.00025444,2]
[424992340,1781385046000,-244.954829,0.00025444,2]
[424992369,1781385046000,-292.911524,0.00025444,2]
[424992409,1781385046000,-62.60087356,0.00025444,2]
[424992389,1781385046000,-241.30356,0.00025444,2]
[424992393,1781385046000,-252.774402,0.00025444,2]
[424992387,1781385046000,-166.15762196,0.00025444,2]
[424992394,1781385046000,-151.0,0.00025444,2]
[424992388,1781385046000,-152.060856,0.00025444,2]
[424992390,1781385046000,-151.0,0.00025444,2]
[424992395,1781385046000,-252.774402,0.00025444,2]
[424992392,1781385046000,-151.0,0.00025444,2]
[424992400,1781385046000,-151.0,0.00025444,2]
[424992399,1781385046000,-151.0,0.00025444,2]
[424992405,1781385046000,-151.0,0.00025444,2]
[424992403,1781385046000,-151.0,0.00025444,2]
[424992401,1781385046000,-151.0,0.00025444,2]
[424992406,1781385046000,-234.045585,0.00025444,2]
[424992404,1781385046000,-151.0,0.00025444,2]
[424992407,1781385046000,-151.0,0.00025444,2]
[424992408,1781385046000,-406.733894,0.00025444,2]
[424992366,1781385046000,-292.911524,0.00025444,2]
[424992391,1781385046000,-151.0,0.00025444,2]
[424992385,1781385046000,-1762.212249,0.00025444,2]
[424992402,1781385046000,-151.0,0.00025444,2]
[424992386,1781385046000,-1596.05462704,0.00025444,2]
[424992398,1781385046000,-151.0,0.00025444,2]
[424992363,1781385046000,-471.426263,0.00025444,2]
[424992365,1781385046000,-151.0,0.00025444,2]
[424992368,1781385046000,-292.911524,0.00025444,2]
[424992373,1781385046000,-2190.316874,0.00025444,2]
[424992383,1781385046000,-1031.54739642,0.00025444,2]
[424992376,1781385046000,-151.0,0.00025444,2]
[424992372,1781385046000,-2190.316874,0.00025444,2]
[424992384,1781385046000,-200.198154,0.00025444,2]
[424992370,1781385046000,-2190.316874,0.00025444,2]
[424992375,1781385046000,-151.0,0.00025444,2]
[424992397,1781385046000,-252.774402,0.00025444,2]
[424992378,1781385046000,-200.198154,0.00025444,2]
[424992380,1781385046000,-189.163985,0.00025444,2]
[424992382,1781385046000,-730.66485258,0.00025444,2]
[424992379,1781385046000,-1762.212249,0.00025444,2]
[424992396,1781385046000,-252.774402,0.00025444,2]
[424992377,1781385046000,-200.198154,0.00025444,2]
[424992381,1781385046000,-200.198154,0.00025444,2]
[424992374,1781385046000,-151.0,0.00025444,2]
[424992457,1781386231000,-1704.2999999,0.00019844,2]
[424992464,1781386232000,-1114.51852297,0.00019844,2]
[424992466,1781386232000,-1302.37594894,0.00019844,2]
[424992697,1781386238000,-171.89937183,0.00024946,2]
[424992708,1781386238000,-500.0,0.00025243,2]
[424992705,1781386238000,-539.06,0.00025234,3]
[424992707,1781386238000,-500.0,0.00025243,2]
[424992706,1781386238000,-500.0,0.00025243,2]
[424992700,1781386238000,-246.0278747,0.000251,2]
[424992701,1781386238000,-264.2771369,0.000251,2]
[424992704,1781386238000,-179.68,0.00025234,3]
[424992703,1781386238000,-275.03627802,0.000251,2]
[424992699,1781386238000,-1199.999999,0.00025,2]
[424992702,1781386238000,-266.78977481,0.000251,2]
[424992686,1781386238000,-878.80552819,0.00019844,2]
[424992698,1781386238000,-153.95412337,0.00024946,2]
[424992695,1781386238000,-300.0,0.00024943,2]
[424992691,1781386238000,-185.10831145,0.00024071,2]
[424992694,1781386238000,-170.7684515,0.00024938,2]
[424992693,1781386238000,-152.0,0.00024339,30]
[424992692,1781386238000,-3064.9346386,0.00024131,2]
[424992687,1781386238000,-162.0,0.00020658,3]
[424992690,1781386238000,-16.78126204,0.00023977,5]
[424992688,1781386238000,-152.0,0.00022104,7]
[424992689,1781386238000,-983.21873796,0.00023977,5]
[424992710,1781386238000,-500.0,0.00025243,2]
[424992696,1781386238000,-370.2166229,0.00024946,2]
[424992711,1781386238000,-500.0,0.00025243,2]
[424992719,1781386238000,-500.0,0.00025243,2]
[424992717,1781386238000,-328.88233117,0.00025243,2]
[424992734,1781386238000,-300.0,0.00025244,2]
[424992732,1781386238000,-650.0,0.00025243,2]
[424992735,1781386238000,-300.0,0.00025244,4]
[424992733,1781386238000,-212.465,0.00025244,9]
[424992730,1781386238000,-500.0,0.00025243,2]
[424992731,1781386238000,-500.0,0.00025243,2]
[424992729,1781386238000,-500.0,0.00025243,2]
[424992728,1781386238000,-500.0,0.00025243,2]
[424992727,1781386238000,-500.0,0.00025243,2]
[424992725,1781386238000,-500.0,0.00025243,2]
[424992722,1781386238000,-500.0,0.00025243,2]
[424992726,1781386238000,-500.0,0.00025243,2]
[424992724,1781386238000,-500.0,0.00025243,2]
[424992723,1781386238000,-500.0,0.00025243,2]
[424992721,1781386238000,-518.47053679,0.00025243,2]
[424992736,1781386238000,-8896.52514069,0.00025244,2]
[424992720,1781386238000,-500.0,0.00025243,2]
[424992716,1781386238000,-500.0,0.00025243,2]
[424992713,1781386238000,-500.0,0.00025243,2]
[424992718,1781386238000,-500.0,0.00025243,2]
[424992712,1781386238000,-500.0,0.00025243,2]
[424992715,1781386238000,-500.0,0.00025243,2]
[424992714,1781386238000,-500.0,0.00025243,2]
[424992709,1781386238000,-500.0,0.00025243,2]
[424992740,1781386240000,-810.75742447,0.00025244,2]
[424992816,1781386243000,-19383.08081793,0.00025244,2]
[424993324,1781386387000,-152.0,0.00022104,7]
[424993325,1781386408000,-215.95969669,0.00024938,2]
[424993326,1781386425000,-151.0,0.000251,14]
[424993327,1781386442000,-151.0,0.000251,18]
[424993328,1781386459000,-500.0,0.00025143,2]
[424993387,1781387432000,-2768.78227548,0.00023825,2]
[424993385,1781387432000,-311.43838706,0.00022234,2]
[424993381,1781387432000,-227.0,0.00021247,2]
[424993379,1781387432000,-171.0,0.00019433,2]
[424993383,1781387432000,-152.0,0.00022105,7]
[424993517,1781387441000,-155.87308757,0.000248,2]
[424993510,1781387441000,-245.94,0.000247,2]
[424993508,1781387441000,-500.0,0.00024522,120]
[424993522,1781387441000,-152.8611999,0.000248,2]
[424993493,1781387441000,-646.385157,0.00024,2]
[424993495,1781387441000,-738.8531834,0.00024144,2]
[424993497,1781387441000,-152.0,0.00024339,30]
[424993504,1781387441000,-631.67,0.00024522,120]
[424993502,1781387441000,-500.0,0.00024522,120]
[424993499,1781387441000,-500.0,0.00024522,120]
[424993488,1781387441000,-821.66639856,0.00023825,2]
[424993476,1781387441000,-164.87547417,0.00023825,2]
[424993462,1781387441000,-684.05448079,0.00023825,2]
[424993491,1781387441000,-427.54368372,0.00023982,5]
[424993520,1781387441000,-152.32192386,0.000248,2]
[424993514,1781387441000,-1778.45619521,0.00024744,2]
[424993527,1781387441000,-500.0,0.00024843,2]
[424993525,1781387441000,-500.0,0.00024843,2]
[424993551,1781387441000,-500.0,0.00024843,2]
[424993547,1781387441000,-272.19143031,0.00024843,2]
[424993553,1781387441000,-12.19143031,0.00024843,2]
[424993549,1781387441000,-227.80856969,0.00024843,2]
[424993544,1781387441000,-500.0,0.00024843,2]
[424993542,1781387441000,-500.0,0.00024843,2]
[424993545,1781387441000,-500.0,0.00024843,2]
[424993538,1781387441000,-500.0,0.00024843,2]
[424993531,1781387441000,-513.99782325,0.00024843,2]
[424993533,1781387441000,-189.28695988,0.00024843,2]
[424993534,1781387441000,-522.1081444,0.00024843,2]
[424993536,1781387441000,-500.0,0.00024843,2]
[424993529,1781387441000,-500.0,0.00024843,2]
[424993523,1781387441000,-359.36,0.00024834,3]
[424993540,1781387441000,-500.0,0.00024843,2]
[424993608,1781387448000,-75.63875676,0.00024843,2]
[424993612,1781387448000,-272.63875676,0.00024843,2]
[424993600,1781387448000,-487.80856969,0.00024843,2]
[424993610,1781387448000,-227.36124324,0.00024843,2]
[424993613,1781387448000,-251.28362549,0.00024843,2]
[424993602,1781387448000,-500.0,0.00024843,2]
[424993603,1781387448000,-424.36124324,0.00024843,2]
[424993640,1781387448000,-500.0,0.00024843,2]
[424993638,1781387448000,-194.65875244,0.00024843,2]
[424993630,1781387448000,-248.71637451,0.00024843,2]
[424993642,1781387448000,-500.0,0.00024843,2]
[424993649,1781387448000,-345.48606613,0.00024843,2]
[424993653,1781387448000,-500.0,0.00024843,2]
[424993651,1781387448000,-500.0,0.00024843,2]
[424993654,1781387448000,-349.5754424,0.00024843,2]
[424993647,1781387448000,-500.0,0.00024843,2]
[424993645,1781387448000,-500.0,0.00024843,2]
[424993632,1781387448000,-305.34124756,0.00024843,2]
[424993644,1781387448000,-500.0,0.00024843,2]
[424993937,1781388638000,-29502.73862175,0.00021,2]
[424993946,1781388638000,-500.0,0.00024543,2]
[424993944,1781388638000,-500.0,0.00024543,2]
[424993943,1781388638000,-500.0,0.00024543,2]
[424993942,1781388638000,-151.0,0.000245,7]
[424993947,1781388638000,-500.0,0.00024543,2]
[424993939,1781388638000,-508.847729,0.00022657,2]
[424993941,1781388638000,-508.847729,0.00023611,2]
[424993945,1781388638000,-500.0,0.00024543,2]
[424993932,1781388638000,-328.0,0.00019817,2]
[424993936,1781388638000,-248.68780535,0.00020999,2]
[424993935,1781388638000,-500.0,0.00020999,2]
[424993933,1781388638000,-24000.0,0.0002,2]
[424993931,1781388638000,-300.0,0.00018538,2]
[424993934,1781388638000,-1771.69352978,0.000209,2]
[424993930,1781388638000,-417.7986212,0.00015,2]
[424993929,1781388638000,-5000.0,0.00014409,2]
[424993948,1781388638000,-500.0,0.00024543,2]
[424993940,1781388638000,-1771.69352973,0.00022961,2]
[424993949,1781388638000,-500.0,0.00024543,2]
[424993938,1781388638000,-234.116,0.00021267,2]
[424993951,1781388638000,-500.0,0.00024543,2]
[424993954,1781388638000,-500.0,0.00024543,2]
[424993971,1781388638000,-151.0,0.00024544,2]
[424993970,1781388638000,-151.0,0.00024544,2]
[424993969,1781388638000,-151.0,0.00024544,2]
[424993963,1781388638000,-500.0,0.00024543,2]
[424993966,1781388638000,-500.0,0.00024543,2]
[424993967,1781388638000,-500.0,0.00024543,2]
[424993968,1781388638000,-500.0,0.00024543,2]
[424993964,1781388638000,-500.0,0.00024543,2]
[424993962,1781388638000,-238.31862063,0.00024543,2]
[424993965,1781388638000,-500.0,0.00024543,2]
[424993961,1781388638000,-500.0,0.00024543,2]
[424993958,1781388638000,-500.0,0.00024543,2]
[424993959,1781388638000,-500.0,0.00024543,2]
[424993956,1781388638000,-500.0,0.00024543,2]
[424993957,1781388638000,-500.0,0.00024543,2]
[424993955,1781388638000,-500.0,0.00024543,2]
[424993950,1781388638000,-500.0,0.00024543,2]
[424993953,1781388638000,-500.0,0.00024543,2]
[424993960,1781388638000,-500.0,0.00024543,2]
[424993952,1781388638000,-500.0,0.00024543,2]
[424994010,1781388639000,-202.219522,0.00024544,2]
[424994011,1781388639000,-202.219522,0.00024544,2]
[424994012,1781388639000,-202.219522,0.00024544,2]
[424994009,1781388639000,-202.219522,0.00024544,2]
[424994007,1781388639000,-151.0,0.00024544,2]
[424994004,1781388639000,-1409.769799,0.00024544,2]
[424994005,1781388639000,-160.158523,0.00024544,2]
[424994006,1781388639000,-151.0,0.00024544,2]
[424994003,1781388639000,-160.158523,0.00024544,2]
[424994013,1781388639000,-151.0,0.00024544,2]
[424994008,1781388639000,-151.0,0.00024544,2]
[424994014,1781388639000,-151.0,0.00024544,2]
[424994022,1781388639000,-151.0,0.00024544,2]
[424994019,1781388639000,-235.041055,0.00024544,2]
[424994017,1781388639000,-151.0,0.00024544,2]
[424994016,1781388639000,-151.0,0.00024544,2]
[424994015,1781388639000,-151.0,0.00024544,2]
[424994020,1781388639000,-151.0,0.00024544,2]
[424994021,1781388639000,-151.0,0.00024544,2]
[424994024,1781388639000,-151.0,0.00024544,2]
[424994023,1781388639000,-151.0,0.00024544,2]
[424994025,1781388639000,-151.0,0.00024544,2]
[424994001,1781388639000,-160.158523,0.00024544,2]
[424994026,1781388639000,-151.0,0.00024544,2]
[424994030,1781388639000,-383.267156,0.00024544,2]
[424994028,1781388639000,-180.758623,0.00024544,2]
[424994018,1781388639000,-151.0,0.00024544,2]
[424994002,1781388639000,-1409.769799,0.00024544,2]
[424993991,1781388639000,-1752.253499,0.00024544,2]
[424993995,1781388639000,-151.0,0.00024544,2]
[424993972,1781388639000,-367.951094,0.00024544,2]
[424993973,1781388639000,-367.951094,0.00024544,2]
[424993974,1781388639000,-151.0,0.00024544,2]
[424993975,1781388639000,-367.951094,0.00024544,2]
[424993977,1781388639000,-151.0,0.00024544,2]
[424994029,1781388639000,-383.267156,0.00024544,2]
[424993978,1781388639000,-151.0,0.00024544,2]
[424993981,1781388639000,-377.14101,0.00024544,2]
[424993980,1781388639000,-151.0,0.00024544,2]
[424993976,1781388639000,-367.951094,0.00024544,2]
[424993979,1781388639000,-151.0,0.00024544,2]
[424993982,1781388639000,-377.14101,0.00024544,2]
[424993984,1781388639000,-377.14101,0.00024544,2]
[424993985,1781388639000,-253.531538,0.00024544,2]
[424993986,1781388639000,-151.0,0.00024544,2]
[424993987,1781388639000,-234.329219,0.00024544,2]
[424993983,1781388639000,-377.14101,0.00024544,2]
[424993988,1781388639000,-234.329219,0.00024544,2]
[424993990,1781388639000,-234.329219,0.00024544,2]
[424993993,1781388639000,-300.0,0.00024544,2]
[424993989,1781388639000,-234.329219,0.00024544,2]
[424993992,1781388639000,-1752.253499,0.00024544,2]
[424993994,1781388639000,-1752.253499,0.00024544,2]
[424993996,1781388639000,-1752.253499,0.00024544,2]
[424993998,1781388639000,-1409.769799,0.00024544,2]
[424993997,1781388639000,-151.0,0.00024544,2]
[424993999,1781388639000,-160.158523,0.00024544,2]
[424994000,1781388639000,-1409.769799,0.00024544,2]
[424994027,1781388639000,-151.0,0.00024544,2]
[424994087,1781388639000,-619.24,0.00024943,2]
[424994032,1781388639000,-383.267156,0.00024544,2]
[424994064,1781388639000,-151.0,0.00024744,2]
[424994065,1781388639000,-227.330999,0.00024744,2]
[424994067,1781388639000,-227.330999,0.00024744,2]
[424994068,1781388639000,-227.330999,0.00024744,2]
[424994069,1781388639000,-221.808499,0.00024744,2]
[424994066,1781388639000,-227.330999,0.00024744,2]
[424994070,1781388639000,-221.808499,0.00024744,2]
[424994071,1781388639000,-221.808499,0.00024744,2]
[424994073,1781388639000,-151.0,0.00024744,2]
[424994074,1781388639000,-151.0,0.00024744,2]
[424994076,1781388639000,-151.0,0.00024744,2]
[424994077,1781388639000,-379.97975694,0.00024835,2]
[424994072,1781388639000,-221.808499,0.00024744,2]
[424994075,1781388639000,-151.0,0.00024744,2]
[424994083,1781388639000,-619.24,0.00024943,2]
[424994080,1781388639000,-619.24,0.00024943,2]
[424994078,1781388639000,-179.96641391,0.00024938,2]
[424994081,1781388639000,-619.24,0.00024943,2]
[424994082,1781388639000,-619.24,0.00024943,2]
[424994084,1781388639000,-619.24,0.00024943,2]
[424994085,1781388639000,-619.24,0.00024943,2]
[424994088,1781388639000,-619.24,0.00024943,2]
[424994089,1781388639000,-619.24,0.00024943,2]
[424994086,1781388639000,-619.24,0.00024943,2]
[424994090,1781388639000,-619.24,0.00024943,2]
[424994091,1781388639000,-619.24,0.00024943,2]
[424994031,1781388639000,-383.267156,0.00024544,2]
[424994062,1781388639000,-243.83781808,0.00024653,2]
[424994063,1781388639000,-1328.6864741,0.00024653,2]
[424994079,1781388639000,-619.24,0.00024942,2]
[424994059,1781388639000,-204.344,0.00024644,2]
[424994060,1781388639000,-204.344,0.00024644,2]
[424994033,1781388639000,-383.267156,0.00024544,2]
[424994035,1781388639000,-383.267156,0.00024544,2]
[424994034,1781388639000,-383.267156,0.00024544,2]
[424994036,1781388639000,-383.267156,0.00024544,2]
[424994037,1781388639000,-151.0,0.00024544,2]
[424994040,1781388639000,-972.819864,0.00024544,2]
[424994039,1781388639000,-972.819864,0.00024544,2]
[424994041,1781388639000,-972.819864,0.00024544,2]
[424994045,1781388639000,-151.0,0.00024544,2]
[424994043,1781388639000,-152.350745,0.00024544,2]
[424994042,1781388639000,-972.819864,0.00024544,2]
[424994044,1781388639000,-169.380139,0.00024544,2]
[424994038,1781388639000,-174.803379,0.00024544,2]
[424994047,1781388639000,-151.0,0.00024544,2]
[424994061,1781388639000,-204.344,0.00024644,2]
[424994046,1781388639000,-151.0,0.00024544,2]
[424994058,1781388639000,-204.344,0.00024644,2]
[424994057,1781388639000,-151.0,0.00024644,2]
[424994054,1781388639000,-151.0,0.00024644,2]
[424994056,1781388639000,-153.978747,0.00024644,2]
[424994055,1781388639000,-151.0,0.00024644,2]
[424994052,1781388639000,-300.0,0.00024642,3]
[424994049,1781388639000,-158.568719,0.00024544,2]
[424994051,1781388639000,-508.847729,0.00024565,2]
[424994050,1781388639000,-196.14,0.00024544,2]
[424994048,1781388639000,-151.0,0.00024544,2]
[424994053,1781388639000,-151.0,0.00024644,2]
[424994111,1781388640000,-151.0,0.00024943,2]
[424994119,1781388640000,-188.287438,0.00024943,2]
[424994113,1781388640000,-151.0,0.00024943,2]
[424994115,1781388640000,-377.14101,0.00024943,2]
[424994116,1781388640000,-377.14101,0.00024943,2]
[424994117,1781388640000,-377.14101,0.00024943,2]
[424994118,1781388640000,-377.14101,0.00024943,2]
[424994120,1781388640000,-234.329219,0.00024943,2]
[424994127,1781388640000,-151.0,0.00024943,2]
[424994123,1781388640000,-234.329219,0.00024943,2]
[424994122,1781388640000,-234.329219,0.00024943,2]
[424994124,1781388640000,-1752.253499,0.00024943,2]
[424994125,1781388640000,-1752.253499,0.00024943,2]
[424994126,1781388640000,-1752.253499,0.00024943,2]
[424994131,1781388640000,-1409.769799,0.00024943,2]
[424994114,1781388640000,-151.0,0.00024943,2]
[424994128,1781388640000,-1752.253499,0.00024943,2]
[424994121,1781388640000,-234.329219,0.00024943,2]
[424994112,1781388640000,-151.0,0.00024943,2]
[424994097,1781388640000,-619.24,0.00024943,2]
[424994109,1781388640000,-367.951094,0.00024943,2]
[424994129,1781388640000,-151.0,0.00024943,2]
[424994092,1781388640000,-619.24,0.00024943,2]
[424994093,1781388640000,-619.24,0.00024943,2]
[424994095,1781388640000,-619.24,0.00024943,2]
[424994094,1781388640000,-619.24,0.00024943,2]
[424994096,1781388640000,-619.24,0.00024943,2]
[424994098,1781388640000,-619.24,0.00024943,2]
[424994101,1781388640000,-619.24,0.00024943,2]
[424994102,1781388640000,-619.26276578,0.00024943,2]
[424994100,1781388640000,-619.24,0.00024943,2]
[424994099,1781388640000,-619.24,0.00024943,2]
[424994103,1781388640000,-151.0,0.00024943,2]
[424994106,1781388640000,-367.951094,0.00024943,2]
[424994105,1781388640000,-151.0,0.00024943,2]
[424994107,1781388640000,-367.951094,0.00024943,2]
[424994108,1781388640000,-151.0,0.00024943,2]
[424994104,1781388640000,-151.0,0.00024943,2]
[424994110,1781388640000,-367.951094,0.00024943,2]
[424994130,1781388640000,-1409.769799,0.00024943,2]
[424994136,1781388640000,-1409.769799,0.00024943,2]
[424994132,1781388640000,-160.158523,0.00024943,2]
[424994156,1781388640000,-972.819864,0.00024943,2]
[424994157,1781388640000,-972.819864,0.00024943,2]
[424994158,1781388640000,-972.819864,0.00024943,2]
[424994161,1781388640000,-151.0,0.00024943,2]
[424994160,1781388640000,-151.0,0.00024943,2]
[424994163,1781388640000,-151.0,0.00024943,2]
[424994162,1781388640000,-151.0,0.00024943,2]
[424994164,1781388640000,-151.0,0.00024943,2]
[424994165,1781388640000,-151.0,0.00024943,2]
[424994171,1781388640000,-1771.69352973,0.00025023,2]
[424994166,1781388640000,-634.845108,0.00024943,2]
[424994170,1781388640000,-403.840073,0.00024943,2]
[424994169,1781388640000,-634.845108,0.00024943,2]
[424994168,1781388640000,-634.845108,0.00024943,2]
[424994167,1781388640000,-634.845108,0.00024943,2]
[424994172,1781388640000,-594432.26265473,0.00025444,2]
[424994133,1781388640000,-160.158523,0.00024943,2]
[424994153,1781388640000,-383.267156,0.00024943,2]
[424994155,1781388640000,-972.819864,0.00024943,2]
[424994159,1781388640000,-151.0,0.00024943,2]
[424994152,1781388640000,-383.267156,0.00024943,2]
[424994134,1781388640000,-1409.769799,0.00024943,2]
[424994173,1781388640000,-119226.60983801,0.00025444,2]
[424994135,1781388640000,-160.158523,0.00024943,2]
[424994154,1781388640000,-383.267156,0.00024943,2]
[424994138,1781388640000,-151.0,0.00024943,2]
[424994139,1781388640000,-151.0,0.00024943,2]
[424994143,1781388640000,-202.219522,0.00024943,2]
[424994142,1781388640000,-202.219522,0.00024943,2]
[424994141,1781388640000,-202.219522,0.00024943,2]
[424994137,1781388640000,-160.158523,0.00024943,2]
[424994144,1781388640000,-202.219522,0.00024943,2]
[424994145,1781388640000,-151.0,0.00024943,2]
[424994149,1781388640000,-151.0,0.00024943,2]
[424994147,1781388640000,-151.0,0.00024943,2]
[424994146,1781388640000,-151.0,0.00024943,2]
[424994150,1781388640000,-151.0,0.00024943,2]
[424994151,1781388640000,-383.267156,0.00024943,2]
[424994148,1781388640000,-277.06447,0.00024943,2]
[424994140,1781388640000,-151.0,0.00024943,2]
[424994185,1781388646000,-403.840073,0.00024943,2]
[424994184,1781388646000,-403.840073,0.00024943,2]
[424994187,1781388647000,-10934.97013561,0.00025444,2]
[424994186,1781388647000,-403.840073,0.00024943,2]
[424994709,1781389832000,-1702.9958645,0.00018353,2]
[424994796,1781389838000,-199.01879555,0.00019717,2]
[424994805,1781389838000,-166.58662532,0.00021603,5]
[424994802,1781389838000,-501.28827127,0.00020999,2]
[424994800,1781389838000,-166.58662532,0.00020955,5]
[424994797,1781389838000,-500.0,0.00019999,2]
[424994799,1781389838000,-166.58662532,0.00020327,5]
[424994793,1781389838000,-1191.5041355,0.00018353,2]
[424994795,1781389838000,-166.58662532,0.00019717,2]
[424994806,1781389838000,-264.95614894,0.00022105,7]
[424994803,1781389838000,-300.0,0.00021602,2]
[424994794,1781389838000,-300.0,0.00018538,2]
[424994801,1781389838000,-264.99441175,0.00020999,2]
[424994798,1781389838000,-500.0,0.00019999,2]
[424994810,1781389838000,-162.87,0.00024565,2]
[424994809,1781389838000,-1000.0,0.00024029,5]
[424994807,1781389838000,-164.8754741,0.00023135,2]
[424994808,1781389838000,-229.99,0.00023707,2]
[424994804,1781389838000,-2426.6635634,0.00021603,2]
[424994827,1781389839000,-151.0,0.00025229,2]
[424994841,1781389839000,-500.0,0.00025243,2]